bitfinex/quotes_ETHUSD_20241124
["timestamp","ask_amount","ask_price","bid_price","bid_amount"]
[1732455816188,0.9661,3320.6,3319.8,3.66136]
[1732455816189,3.97766,3320.6,3319.8,3.66136]
[1732455816417,3.0118,3320.3,3319.6,2.40986]
[1732455816932,3.01201,3320.1,3319.5,3.66159]
[1732455817091,3.50982712,3320.2,3319.5,2.40993]
[1732455817290,3.50982712,3320.2,3319.4,2.41004]
[1732455817291,3.01202,3320.1,3319.4,2.41004]
[1732455817505,0.964,3319.9,3319.3,2.41013]
[1732455817814,0.964,3319.9,3319.4,2.41006]
[1732455818017,0.964,3319.9,3319.5,2.40999]
[1732455818204,0.964,3319.9,3319.4,2.41006]
[1732455818625,0.964,3319.9,3319.4,4.82008]
[1732455818828,0.964,3319.9,3319.5,2.95993]
[1732455819018,8.99,3320.1,3319.7,2.4098]
[1732455819223,8.99,3320.1,3319.8,0.55]
[1732455819432,8.99,3320.1,3320.0,2.95963]
[1732455819610,0.964,3320.9,3320.3,2.40938]
[1732455819811,3.01132,3320.8,3320.2,0.55]
[1732455820241,3.01132,3320.8,3320.1,2.40951]
[1732455820242,9.954,3320.9,3320.1,0.55]
[1732455820535,3.97595,3320.1,3320.0,1.4624]
[1732455820835,13.82466675,3320.1,3320.0,1.4624]
[1732455821010,16.82466675,3320.1,3320.0,1.4624]
[1732455821540,16.8911659,3320.1,3320.0,1.4624]
[1732455822452,3.97702,3319.0,3318.3,2.41085]
[1732455822623,3.97702,3319.0,3318.5,2.41067]
[1732455822624,0.964,3319.0,3318.5,2.41067]
[1732455822832,3.97662,3319.4,3318.2,0.36408]
[1732455823151,3.01269,3319.3,3318.7,2.41052]
[1732455823359,0.06649915,3319.2,3318.8,0.241052]
[1732455823534,0.06649915,3319.2,3318.7,2.41052]
[1732455823847,0.06649915,3319.2,3318.7,2.41056]
[1732455824949,12.00287,3319.1,3318.3,2.41084]
[1732455825149,3.01311,3318.9,3318.1,1.2298]
[1732455825350,3.07964915,3318.8,3318.1,1.2298]
[1732455825552,3.01324,3318.7,3318.1,3.6408]
[1732455825741,3.01323,3318.7,3318.1,3.64078]
[1732455825942,0.06649915,3318.6,3318.1,4.004858]
[1732455826147,0.06649915,3318.6,3318.3,0.55]
[1732455826660,8.99,3319.0,3318.3,2.96086]
[1732455826970,12.00295,3319.0,3318.4,0.55]
[1732455827112,3.07954915,3318.9,3318.4,0.55]
[1732455827852,0.964,3318.7,3318.2,0.55]
[1732455828061,0.964,3318.7,3317.3,2.433837]
[1732455828062,3.01367,3318.3,3317.6,2.41137]
[1732455828371,0.06601522,3318.2,3317.6,2.41137]
[1732455828649,0.06601522,3318.2,3317.7,2.4113]
[1732455828828,0.06601522,3318.2,3317.6,2.41137]
[1732455829159,8.99,3318.4,3318.0,2.41106]
[1732455829323,0.06600301,3318.3,3318.0,2.41106]
[1732455829874,0.06600301,3318.3,3318.1,0.55]
[1732455830076,0.06600301,3318.3,3318.2,2.96094]
[1732455830570,8.99,3318.4,3318.3,2.96087]
[1732455830768,0.06503088,3318.4,3318.3,0.55]
[1732455830973,8.99,3319.0,3318.3,2.96087]
[1732455831153,0.06503088,3318.9,3318.5,2.41072]
[1732455831652,0.06503088,3318.9,3318.7,0.55]
[1732455832040,0.06503088,3318.9,3318.7,2.96058]
[1732455832436,0.06503088,3318.9,3318.8,2.4105]
[1732455832831,0.06503088,3318.9,3318.8,2.9605]
[1732455833032,0.06503088,3318.9,3318.8,4.1903]
[1732455833269,0.06503088,3318.9,3318.8,4.88051611]
[1732455833574,8.99,3319.7,3319.3,2.41013]
[1732455833744,0.06503088,3319.6,3319.4,2.41006]
[1732455833965,12.00219,3319.9,3319.2,2.41017]
[1732455834275,0.06503088,3319.8,3319.3,0.55]
[1732455834450,3.07726088,3319.8,3319.3,0.55]
[1732455834637,3.07726088,3319.8,3319.3,2.96014]
[1732455834837,3.07726088,3319.8,3319.4,2.41007]
[1732455834838,0.06503088,3319.8,3319.4,2.41007]
[1732455835033,9.05503088,3319.8,3319.4,2.41007]
[1732455835859,3.97634,3319.7,3319.3,0.55]
[1732455836046,0.964,3319.7,3319.3,0.55]
[1732455836352,0.06503088,3319.6,3319.3,0.55]
[1732455836658,3.01301,3319.0,3318.1,2.41101]
[1732455836864,0.06503088,3319.6,3318.1,2.41101]
[1732455836865,3.01308,3318.9,3318.2,2.41088]
[1732455837066,3.01337,3318.6,3317.9,2.41112]
[1732455837266,3.01369,3318.2,3317.5,2.4114]
[1732455837566,0.06503088,3318.1,3317.9,2.4111]
[1732455837773,12.00356,3318.4,3317.7,2.41126]
[1732455837943,3.07867088,3318.3,3317.7,2.41126]
[1732455838285,3.01395,3317.9,3316.9,2.41189]
[1732455838458,3.01395,3317.9,3316.9,0.4845979]
[1732455838661,8.99,3318.4,3316.7,0.03014104]
[1732455838969,3.01425,3317.6,3316.9,2.41182]
[1732455839168,0.06503088,3317.5,3316.5,2.71287]
[1732455839357,0.06503088,3317.5,3316.9,2.41186]
[1732455839554,0.964,3317.3,3316.5,0.30566825]
[1732455839754,3.01483,3317.0,3316.3,2.41225]
[1732455839948,0.06503088,3316.9,3316.1,2.41245]
[1732455840158,0.06503088,3316.9,3316.3,2.41226]
[1732455840356,0.06503088,3316.9,3316.6,2.41203]
[1732455840591,0.06503088,3316.9,3316.3,2.41232]
[1732455840753,0.06503088,3316.9,3316.3,2.41231]
[1732455840947,6.0303,3316.8,3316.2,2.41239]
[1732455841583,0.06503088,3316.7,3316.6,2.4121]
[1732455841742,6.0303,3316.8,3316.2,0.03014959]
[1732455841941,6.0303,3316.8,3316.7,2.41203]
[1732455842148,6.0303,3316.8,3316.7,2.96203]
[1732455842652,8.99,3317.7,3317.4,0.55]
[1732455842845,9.954,3317.9,3317.4,2.96152]
[1732455843046,9.954,3317.9,3317.5,2.41142]
[1732455843442,9.954,3317.9,3317.5,2.4114]
[1732455843648,6.0283,3317.8,3317.6,2.41132]
[1732455843947,6.0283,3317.8,3317.7,2.9613]
[1732455844174,6.0283,3317.8,3317.6,2.96136]
[1732455844548,6.0283,3317.8,3317.7,2.9613]
[1732455844760,6.0283,3317.8,3317.7,2.4113]
[1732455846197,6.0283,3317.8,3317.5,2.41139]
[1732455846401,6.0283,3317.8,3317.7,2.4113]
[1732455847957,6.0283,3317.8,3317.5,2.41138]
[1732455848696,6.0283,3317.8,3317.3,2.41154]
[1732455848854,6.0283,3317.8,3317.4,2.41147]
[1732455849056,6.0283,3317.8,3317.6,2.41137]
[1732455849254,6.0283,3317.8,3317.5,2.41144]
[1732455849255,6.0283,3317.8,3317.7,2.4113]
[1732455851799,6.0283,3317.8,3317.7,7.1972]
[1732455851980,9.9592,3319.0,3318.5,2.41065]
[1732455852190,0.06192157,3318.9,3318.5,2.41065]
[1732455852392,0.06192157,3318.9,3318.8,2.4105]
[1732455852601,0.9692,3319.3,3319.1,2.41024]
[1732455852791,0.06192157,3319.2,3319.1,2.41024]
[1732455852995,8.99,3319.8,3319.4,2.41001]
[1732455853192,0.06192157,3319.7,3319.6,2.40992]
[1732455853403,8.99,3319.9,3319.8,2.40978]
[1732455853911,9.9592,3320.6,3319.9,2.40964]
[1732455854214,8.99,3320.5,3320.1,2.40955]
[1732455854394,8.99,3320.5,3319.9,2.40964]
[1732455854570,3.01184,3320.3,3319.7,2.40983]
[1732455854771,3.01184,3320.3,3319.5,2.40997]
[1732455855023,12.00166,3320.5,3319.7,2.40982]
[1732455855305,3.39396241,3320.3,3319.4,2.41007]
[1732455855508,8.99,3320.5,3319.9,2.40965]
[1732455855805,8.99,3320.5,3320.3,2.40941]
[1732455856101,8.99,3320.5,3320.4,2.40934]
[1732455856311,8.99,3320.9,3320.4,2.40934]
[1732455856525,8.99,3320.9,3320.2,2.40946]
[1732455856669,8.99,3320.9,3320.4,2.40929]
[1732455857766,8.99,3320.9,3319.9,0.03011425]
[1732455858070,12.00123,3320.9,3319.8,3.0]
[1732455858270,3.01146,3320.7,3319.8,5.40978]
[1732455858470,3.01146,3320.7,3320.0,2.40956]
[1732455858707,12.00123,3320.9,3320.2,2.40942]
[1732455858903,12.00123,3320.9,3320.3,2.40941]
[1732455859220,12.00123,3320.9,3319.6,5.40987]
[1732455859221,3.0116,3320.5,3319.6,2.40987]
[1732455859386,0.9692,3320.1,3319.4,2.41002]
[1732455859593,3.01208,3320.0,3319.2,2.4102]
[1732455859803,3.01208,3320.0,3319.0,2.41035]
[1732455860014,0.9692,3320.1,3319.0,2.41035]
[1732455860191,0.9692,3320.1,3318.9,1.2359]
[1732455860395,3.98116,3320.1,3319.4,2.41001]
[1732455860595,3.98116,3320.1,3319.5,2.40998]
[1732455860821,0.9692,3320.1,3319.4,2.41007]
[1732455861124,3.01211,3320.0,3319.4,2.41007]
[1732455861719,0.9692,3320.1,3319.5,2.40995]
[1732455861936,0.9692,3320.1,3319.4,2.41007]
[1732455862105,3.01205,3320.0,3319.4,2.41007]
[1732455862304,3.01232,3319.7,3318.5,1.2217]
[1732455862488,8.99,3320.0,3318.0,3.0]
[1732455862489,3.01264,3319.4,3318.7,2.41052]
[1732455862818,3.01264,3319.4,3318.3,2.41087]
[1732455863023,12.00242,3319.6,3318.7,2.41053]
[1732455863183,3.01266,3319.4,3318.7,2.41053]
[1732455863386,3.01275,3319.3,3318.5,2.4107]
[1732455863625,3.01256,3319.5,3318.5,2.4107]
[1732455863832,3.01261,3319.4,3318.5,2.4107]
[1732455863983,0.9692,3319.5,3318.3,2.41084]
[1732455864188,3.01301,3319.0,3318.3,2.41084]
[1732455864590,3.01301,3319.0,3318.2,0.03012747]
[1732455864591,3.01314,3318.8,3318.2,2.41094]
[1732455864790,3.0128,3319.2,3318.3,5.41084]
[1732455865018,3.01286,3319.1,3318.5,2.41071]
[1732455865328,3.01297,3319.0,3318.4,2.41079]
[1732455865525,3.0128,3319.2,3318.0,1.2217]
[1732455865687,3.0128,3319.2,3318.6,2.41063]
[1732455865891,3.0129,3319.1,3318.3,2.41082]
[1732455866111,3.01268,3319.3,3318.5,2.41072]
[1732455866310,3.01268,3319.3,3318.5,2.65480502]
[1732455866515,3.01268,3319.3,3318.2,2.41091]
[1732455866729,3.0131,3318.9,3318.3,3.0]
[1732455867238,3.07576831,3318.8,3318.3,3.0]
[1732455867388,0.9692,3318.7,3318.0,1.2217]
[1732455867584,0.9692,3318.7,3318.0,3.63274]
[1732455867785,3.01343,3318.5,3317.9,2.41115]
[1732455868018,3.98248,3318.7,3318.1,2.41101]
[1732455868226,3.98248,3318.7,3317.8,0.03013409]
[1732455868227,0.06259831,3318.4,3318.0,2.41108]
[1732455868389,0.9692,3318.7,3318.1,2.411]
[1732455868596,0.06259831,3318.6,3318.3,2.41084]
[1732455868819,3.01311,3318.9,3318.1,2.411]
[1732455869009,0.06259831,3318.5,3318.2,2.41092]
[1732455869205,3.01332,3318.6,3318.0,0.2774442]
[1732455869407,0.06259831,3318.4,3317.7,3.63295]
[1732455869618,0.06259831,3318.4,3317.5,0.03013255]
[1732455869619,0.9692,3318.4,3317.5,0.03013255]
[1732455869793,3.01383,3318.1,3317.5,2.41143]
[1732455870314,0.06259831,3318.0,3317.5,2.41143]
[1732455870815,0.06259831,3318.0,3317.3,0.03013943]
[1732455871132,12.00359,3318.3,3317.7,2.41125]
[1732455871429,8.99,3318.3,3317.7,2.41125]
[1732455871585,3.07634831,3318.2,3317.5,2.41143]
[1732455871792,12.06630831,3318.2,3317.6,2.41136]
[1732455871999,9.05259831,3318.2,3317.4,2.4115]
[1732455872243,12.06632831,3318.2,3317.6,2.41134]
[1732455872403,3.01389,3318.0,3317.2,2.41164]
[1732455872607,6.0905989,3317.9,3317.2,2.79315391]
[1732455873120,9.1045689,3317.9,3317.3,2.41156]
[1732455873321,3.01405,3317.8,3317.3,2.41156]
[1732455873625,6.0284,3317.7,3317.2,0.38151391]
[1732455873831,6.0905989,3317.7,3317.1,5.41169]
[1732455873995,6.0905989,3317.7,3317.2,5.41166]
[1732455874627,6.0905989,3317.7,3317.2,5.41167]
[1732455874993,6.0905989,3317.7,3317.2,3.0]
[1732455875193,9.1047989,3317.7,3317.1,3.09322291]
[1732455875394,9.1047989,3317.7,3317.2,3.0]
[1732455875620,9.9592,3317.6,3317.0,2.41176]
[1732455875829,9.9592,3317.6,3316.9,2.41186]
[1732455875830,6.0284,3317.5,3316.9,2.41186]
[1732455876000,3.01445,3317.4,3316.8,2.41195]
[1732455876330,3.0767189,3317.3,3316.8,2.41194]
[1732455876529,3.01464,3317.2,3316.5,2.41218]
[1732455876693,3.01473,3317.1,3316.5,0.241214]
[1732455876893,3.07665155,3317.1,3316.4,2.41221]
[1732455877110,3.01487,3316.9,3316.2,4.82468]
[1732455877334,6.0284,3316.8,3316.3,2.41231]
[1732455877508,7.05245627,3316.8,3316.3,2.41231]
[1732455878003,7.05245627,3316.8,3315.6,2.90877865]
[1732455878004,8.99,3316.7,3316.4,2.41218]
[1732455878334,6.0284,3316.6,3316.1,0.36643]
[1732455878491,6.09025627,3316.6,3316.0,2.41248]
[1732455878697,9.10539627,3316.6,3316.0,2.41248]
[1732455878897,6.09025627,3316.6,3316.1,2.41245]
[1732455879231,6.09025627,3316.6,3315.8,2.82569786]
[1732455879232,9.10539627,3316.6,3315.8,2.82569786]
[1732455879444,6.09025627,3316.6,3315.9,3.40473979]
[1732455879736,6.09025627,3316.6,3316.1,2.41242]
[1732455879898,6.09025627,3316.6,3316.2,2.41239]
[1732455880096,6.09025627,3316.6,3316.1,2.41242]
[1732455880295,6.09025627,3316.6,3316.3,2.41231]
[1732455880834,6.09025627,3316.6,3316.2,2.41232]
[1732455881043,6.09025627,3316.6,3315.9,3.40473979]
[1732455881200,6.09025627,3316.6,3316.4,2.41225]
[1732455881800,6.09025627,3316.6,3316.5,2.41218]
[1732455882343,6.09025627,3316.6,3316.3,2.41232]
[1732455882505,6.09025627,3316.6,3316.4,2.41224]
[1732455882700,6.09025627,3316.6,3316.3,2.41232]
[1732455882899,6.09025627,3316.6,3316.4,2.41225]
[1732455883318,6.09025627,3316.6,3316.5,2.41218]
[1732455886136,6.09025627,3316.6,3316.3,2.41226]
[1732455886339,6.09025627,3316.6,3316.3,2.41229]
[1732455886631,6.09025627,3316.6,3316.4,2.4122]
[1732455886805,6.09025627,3316.6,3316.3,2.41229]
[1732455887198,6.09025627,3316.6,3316.2,2.41239]
[1732455888040,6.09025627,3316.6,3315.8,3.0]
[1732455888353,6.09025627,3316.6,3315.6,2.90877865]
[1732455888354,3.01565,3316.1,3315.6,2.90877865]
[1732455888499,3.01565,3316.1,3315.6,5.32160865]
[1732455888809,0.05584843,3316.0,3315.7,2.41271]
[1732455889137,3.97755,3316.4,3315.6,2.41282]
[1732455889138,6.0284,3315.9,3315.6,2.41282]
[1732455889448,6.0891291,3315.9,3315.6,2.41282]
[1732455890712,6.0891291,3315.9,3315.4,2.41295]
[1732455890912,6.0891291,3315.9,3315.4,2.41291]
[1732455891158,6.0891291,3315.9,3315.4,4.82583]
[1732455891454,6.0891291,3315.9,3315.1,5.41312]
[1732455891455,3.97821,3315.7,3315.1,5.41312]
[1732455891657,3.97821,3315.7,3314.9,0.1480215]
[1732455891658,6.0284,3315.6,3314.9,2.5613615]
[1732455891812,15.0184,3315.6,3315.2,2.41307]
[1732455892214,0.0607291,3315.5,3315.2,2.41307]
[1732455892515,6.0284,3315.4,3315.1,2.41314]
[1732455892750,6.0284,3315.4,3315.0,2.41321]
[1732455892909,0.0607291,3315.3,3315.1,2.41315]
[1732455893337,15.9806,3315.2,3314.9,0.1480215]
[1732455893648,15.9806,3315.2,3315.0,2.41322]
[1732455893649,0.06030852,3315.1,3315.0,2.41322]
[1732455893855,0.06030852,3315.1,3315.0,2.91067915]
[1732455894857,6.08870852,3315.1,3315.0,2.91067915]
[1732455895515,6.08870852,3315.1,3315.0,2.41322]
[1732455897147,6.08870852,3315.1,3315.0,5.41322]
[1732455898564,6.08870852,3315.1,3315.0,6.70922]
[1732455900553,6.08870852,3315.1,3315.0,7.25922]
[1732455900715,8.52e-06,3315.1,3315.0,7.25922]
[1732455900921,8.99,3316.9,3316.4,2.41225]
[1732455901158,0.05379897,3316.8,3315.8,1.287]
[1732455901368,0.05379897,3316.8,3315.7,3.0]
[1732455901369,3.01554,3316.2,3315.7,3.0]
[1732455901522,3.9779,3316.0,3315.5,2.41289]
[1732455901720,0.9622,3316.0,3315.7,2.41271]
[1732455901920,0.05379897,3315.9,3314.9,0.1480215]
[1732455902170,3.01593,3315.8,3315.1,2.41314]
[1732455902458,0.05392986,3315.7,3314.9,0.1480215]
[1732455902769,0.9622,3315.2,3314.9,0.1480215]
[1732455903119,0.05404846,3315.1,3314.9,0.1480215]
[1732455904061,12.00659,3315.0,3314.9,0.1480215]
[1732455904270,12.96879,3315.0,3314.9,0.1480215]
[1732455904417,16.02272804,3315.0,3314.9,0.1480215]
[1732455904758,16.40488045,3315.0,3314.9,0.1480215]
[1732455904945,0.9622,3314.8,3313.3,3.22229525]
[1732455905151,0.9622,3314.1,3313.2,2.41455]
[1732455905380,0.9622,3313.9,3312.8,2.41485]
[1732455905666,3.01804,3313.4,3312.8,0.241481]
[1732455905873,8.8419785,3313.3,3313.2,2.41458]
[1732455906020,9.8041785,3314.2,3313.3,2.41451]
[1732455906221,3.61057268,3314.7,3314.0,2.41398]
[1732455906222,8.89285484,3314.1,3314.0,2.41398]
[1732455906421,0.05087634,3314.1,3314.0,2.41398]
[1732455906730,8.8419785,3314.4,3313.8,2.41413]
[1732455907060,8.8419785,3314.4,3313.8,2.41414]
[1732455907364,8.8419785,3314.4,3313.9,2.41405]
[1732455907519,0.05087634,3314.3,3313.9,2.41406]
[1732455907927,0.05087634,3314.3,3313.3,2.41447]
[1732455907928,0.05087634,3314.3,3313.8,2.41414]
[1732455908149,6.0349,3314.2,3313.4,3.0]
[1732455908319,6.0349,3314.2,3312.5,2.41502]
[1732455908320,6.0349,3314.2,3313.6,2.41426]
[1732455908632,1.01367634,3314.1,3313.3,2.41444]
[1732455908832,6.0349,3314.0,3313.5,2.41431]
[1732455909231,0.05087634,3313.9,3313.5,2.41431]
[1732455909622,6.0349,3313.8,3313.5,2.41431]
[1732455909825,6.0349,3313.8,3313.7,2.41421]
[1732455910025,6.08577634,3313.8,3313.7,2.41421]
[1732455910247,6.08577634,3313.8,3313.7,3.576302]
[1732455910449,6.08577634,3313.8,3313.7,6.576302]
[1732455910761,6.08577634,3313.8,3313.7,7.868702]
[1732455911087,3.01623,3315.4,3314.8,2.41339]
[1732455911374,8.8419785,3315.3,3315.1,2.41314]
[1732455911527,8.8419785,3315.3,3314.4,1.2924]
[1732455911528,8.89285484,3315.3,3314.4,1.2924]
[1732455911728,8.89285484,3315.3,3314.6,2.41352]
[1732455912120,11.90917484,3315.3,3313.9,1.2924]
[1732455912345,3.0166,3315.0,3314.1,2.41392]
[1732455912583,0.05096653,3314.9,3313.9,2.41405]
[1732455912764,3.01677,3314.8,3314.2,2.41385]
[1732455913085,3.97934,3315.1,3314.0,2.41398]
[1732455913086,3.01702,3314.6,3314.0,2.41398]
[1732455913256,8.8419785,3314.6,3313.7,3.0]
[1732455913459,0.05113457,3314.5,3314.1,2.41387]
[1732455913770,0.05113457,3314.5,3314.0,2.414]
[1732455913978,0.05113457,3314.5,3314.4,2.4137]
[1732455914171,0.05113457,3314.5,3314.4,6.7061]
[1732455914374,8.8419785,3314.6,3314.4,6.7061]
[1732455914558,0.9628,3315.5,3314.5,3.55]
[1732455914764,0.05102391,3315.4,3315.2,2.4131]
[1732455914969,0.05102391,3315.4,3315.3,2.41305]
[1732455915162,0.9628,3315.9,3315.2,2.4131]
[1732455915163,8.8419785,3315.8,3315.4,2.41292]
[1732455915381,0.05102391,3315.7,3315.2,2.41307]
[1732455915714,0.05102391,3315.7,3315.0,1.2924]
[1732455915715,0.05102391,3315.7,3315.0,3.70564]
[1732455916016,3.06705391,3315.7,3315.1,2.41317]
[1732455916165,0.05102391,3315.7,3314.8,2.41339]
[1732455916365,3.0162,3315.5,3314.8,2.41339]
[1732455916574,8.8419785,3315.8,3314.6,4.2924]
[1732455916890,0.9628,3315.9,3314.6,4.2924]
[1732455916891,11.90898241,3315.7,3315.0,2.4132]
[1732455917252,8.89300241,3315.7,3315.2,2.41311]
[1732455917757,8.89300241,3315.7,3315.0,2.4132]
[1732455917994,11.90902241,3315.7,3315.0,2.41326]
[1732455918205,3.0161,3315.6,3315.0,2.41326]
[1732455918554,8.8419785,3315.7,3315.1,2.41319]
[1732455918555,0.05102391,3315.5,3315.1,2.41319]
[1732455918852,3.01608,3315.6,3315.0,2.41326]
[1732455919054,0.05102391,3315.5,3314.7,3.0]
[1732455919272,3.01647,3315.2,3314.5,2.41358]
[1732455919487,11.8584485,3315.2,3314.5,2.41358]
[1732455919695,11.8584485,3315.2,3314.7,2.41346]
[1732455919696,8.8419785,3315.2,3314.7,2.41346]
[1732455919949,0.05147471,3315.1,3314.8,2.41341]
[1732455920245,0.05147471,3315.1,3314.2,2.41382]
[1732455920399,0.9628,3314.7,3314.0,2.41397]
[1732455920600,3.01703,3314.6,3313.8,2.41411]
[1732455920803,0.05147471,3314.5,3314.0,2.41399]
[1732455921109,0.05147471,3314.5,3314.1,2.41392]
[1732455921310,3.01714,3314.4,3313.8,2.41413]
[1732455921632,0.05147471,3314.3,3313.8,2.41413]
[1732455922004,3.01714,3314.4,3313.8,2.41413]
[1732455922313,3.01734,3314.2,3313.6,2.41424]
[1732455922514,0.05147471,3314.3,3313.6,2.41424]
[1732455922713,3.0172,3314.4,3313.6,2.41424]
[1732455923044,3.01704,3314.5,3313.6,2.41424]
[1732455923045,11.8589885,3314.6,3313.8,2.41412]
[1732455923243,0.05147471,3314.5,3313.4,1.2173]
[1732455923579,0.05147471,3314.5,3313.7,0.55]
[1732455923781,0.05147471,3314.5,3314.3,2.41371]
[1732455923952,0.05147471,3314.5,3314.4,5.9637]
[1732455924167,0.9628,3315.3,3314.4,3.58016532]
[1732455924403,0.9628,3315.3,3314.1,1.2173]
[1732455924404,0.05147471,3315.2,3314.7,0.55]
[1732455924547,0.05147471,3315.2,3314.8,3.0]
[1732455924741,0.9628,3315.3,3314.8,5.41339]
[1732455925044,0.05147471,3315.2,3314.7,3.0]
[1732455925385,0.05147471,3315.2,3314.4,3.55]
[1732455925386,3.01655,3315.1,3314.4,3.55]
[1732455925588,0.9628,3314.8,3314.1,2.41389]
[1732455925776,3.06833471,3314.7,3314.1,2.41389]
[1732455926082,0.9628,3314.3,3313.4,2.41437]
[1732455926294,3.01738,3314.2,3313.5,2.41431]
[1732455926446,0.9628,3314.3,3313.5,0.482868]
[1732455926654,3.06879471,3314.2,3313.3,2.44462447]
[1732455926963,3.01756,3314.0,3313.2,2.41457]
[1732455927286,0.9628,3313.8,3313.3,2.41445]
[1732455927686,3.01783,3313.7,3313.1,0.241467]
[1732455927856,0.05147471,3313.7,3313.0,0.03017767]
[1732455928245,0.9628,3313.6,3312.9,2.41473]
[1732455928449,9.8047785,3313.6,3313.0,0.03018239]
[1732455928783,0.05147471,3313.5,3313.0,2.41466]
[1732455928984,0.05147471,3313.5,3313.1,2.4146]
[1732455929157,0.9628,3313.4,3312.8,2.41481]
[1732455929363,0.05083938,3313.3,3312.6,2.41501]
[1732455929672,0.05083938,3313.3,3312.0,2.41544]
[1732455929673,0.9628,3312.8,3312.0,2.41544]
[1732455929873,3.01871,3312.7,3312.0,2.41544]
[1732455930077,0.9628,3312.6,3311.6,6.32845404]
[1732455930249,0.9628,3311.8,3311.6,3.31921458]
[1732455930595,0.9628,3311.8,3311.6,0.1480215]
[1732455930745,0.05083938,3311.7,3311.6,0.1480215]
[1732455930946,0.9628,3311.8,3311.6,2.5637715]
[1732455931157,0.05083938,3311.7,3311.6,0.1480215]
[1732455931370,0.9628,3312.4,3311.8,2.71749]
[1732455931570,3.01914,3312.2,3311.6,0.1480215]
[1732455931896,0.9628,3312.1,3311.6,0.1480215]
[1732455932056,1.01363938,3312.1,3311.6,0.1480215]
[1732455933061,1.01363938,3312.1,3311.6,2.8657315]
[1732455933400,0.9628,3311.0,3310.2,2.71884]
[1732455933691,6.0389,3310.9,3310.3,1.2173]
[1732455933909,6.08973938,3310.9,3310.8,2.71837]
[1732455934395,6.08973938,3310.9,3310.8,3.262054]
[1732455934596,4.57957938,3310.9,3310.8,3.262054]
[1732455934760,0.04914505,3310.9,3310.8,8.05955238]
[1732455934963,9.8047785,3312.5,3310.8,5.310984]
[1732455935156,0.9628,3312.5,3311.7,3.0]
[1732455935461,0.04750705,3312.4,3311.0,0.55]
[1732455935700,8.8419785,3312.3,3311.5,2.71777]
[1732455935879,8.8419785,3312.3,3311.5,2.71775]
[1732455936079,11.8610285,3312.3,3311.5,2.71775]
[1732455936281,0.04750705,3312.2,3311.5,2.71775]
[1732455936603,0.04750705,3312.2,3311.3,2.71795]
[1732455936815,0.04750705,3312.2,3311.1,0.03019305]
[1732455936816,0.04750705,3312.2,3311.7,2.71761]
[1732455937162,8.8419785,3312.4,3311.7,2.71761]
[1732455937395,0.04750705,3312.3,3311.3,0.03019413]
[1732455937601,0.04750705,3312.3,3311.7,2.71757]
[1732455937804,0.04750705,3312.3,3312.0,2.71731]
[1732455938001,0.04750705,3312.3,3311.8,2.71747]
[1732455938300,0.04750705,3312.3,3311.7,0.5465543]
[1732455938501,0.04750705,3312.3,3312.1,2.71725]
[1732455938716,0.9628,3312.5,3312.1,2.71725]
[1732455938921,0.04750705,3312.2,3311.9,2.71745]
[1732455939126,0.9628,3312.5,3311.7,3.0]
[1732455939412,0.9628,3312.5,3311.3,2.71794]
[1732455939413,3.01914,3312.2,3311.3,0.55]
[1732455939625,0.04750705,3312.1,3311.5,2.7178]
[1732455939806,3.98172,3312.5,3311.6,2.71763]
[1732455939980,0.04750705,3312.4,3311.8,0.55]
[1732455940187,0.9577,3313.0,3312.1,2.7173]
[1732455940412,0.04750705,3312.9,3312.3,2.71708]
[1732455940719,0.04750705,3312.9,3312.0,0.55]
[1732455940920,0.04750705,3312.9,3312.5,2.71695]
[1732455941284,0.04750705,3312.9,3312.3,2.71709]
[1732455941619,0.04750705,3312.9,3312.0,3.11928184]
[1732455942118,0.04750705,3312.9,3312.5,2.71697]
[1732455942838,0.04750705,3312.9,3312.0,0.40190184]
[1732455942839,0.04750705,3312.9,3312.1,2.7173]
[1732455943136,3.01874,3312.7,3312.0,3.0]
[1732455943428,3.01911,3312.3,3311.1,2.71812]
[1732455943644,8.8419785,3312.3,3311.3,2.71796]
[1732455943839,3.01935,3312.0,3311.3,2.989756]
[1732455944024,3.01914,3312.2,3311.4,2.71782]
[1732455944344,3.01941,3311.9,3310.5,1.2125]
[1732455944499,3.01966,3311.7,3310.9,2.71823]
[1732455944829,3.01941,3311.9,3311.2,2.71802]
[1732455945031,6.08551808,3311.8,3310.8,0.03019899]
[1732455945240,6.08551808,3311.8,3310.9,0.3030199]
[1732455945537,6.08551808,3311.8,3311.5,2.71773]
[1732455945902,6.08551808,3311.8,3311.6,2.7177]
[1732455946334,6.08551808,3311.8,3311.5,2.71776]
[1732455946532,6.08551808,3311.8,3311.5,2.71778]
[1732455946733,6.08551808,3311.8,3311.7,2.71763]
[1732455947315,6.0395,3311.8,3311.7,5.71763]
[1732455947517,6.0395,3311.8,3311.7,5.94087047]
[1732455947734,6.08337312,3311.8,3311.7,5.94087047]
[1732455948045,6.08337312,3311.8,3311.7,7.38390832]
[1732455949230,6.08337312,3311.8,3311.7,8.59640832]
[1732455949527,6.08337312,3311.8,3311.7,5.94087047]
[1732455950355,6.08337312,3311.8,3311.7,0.22324047]
[1732455950716,6.0395,3311.8,3311.7,0.22324047]
[1732455950916,6.08357862,3311.8,3311.7,0.22324047]
[1732455951128,6.08357862,3311.8,3311.7,2.94087047]
[1732455951323,6.08357862,3311.8,3311.7,0.22324047]
[1732455952820,6.08357862,3311.8,3311.7,2.94087047]
[1732455953057,6.08357862,3311.8,3311.7,3.49087047]
[1732455953359,6.08357862,3311.8,3311.7,6.49087047]
[1732455953651,6.0395,3311.8,3311.7,6.49087047]
[1732455953847,6.08357862,3311.8,3311.7,6.49087047]
[1732455954052,6.08357862,3311.8,3311.7,7.53297352]
[1732455954430,6.08357862,3311.8,3311.7,5.71763]
[1732455955357,6.0395,3311.8,3311.6,3.0]